bitfinex/quotes_ETHUSD_20250415
["timestamp","ask_amount","ask_price","bid_price","bid_amount"]
[1744726006588,4.0074029,1628.5,1628.4,7.29959983]
[1744726006936,6.1384,1629.1,1629.0,0.2]
[1744726007239,6.13803,1629.2,1629.0,0.2]
[1744726007419,6.13835,1629.1,1628.9,0.2]
[1744726007747,6.13873,1629.0,1628.9,0.2]
[1744726008041,6.13835,1629.1,1629.0,0.2]
[1744726008243,8.235487,1629.1,1629.0,0.2]
[1744726008402,6.13835,1629.1,1629.0,0.2]
[1744726008602,6.13835,1629.1,1628.7,6.13986]
[1744726008603,6.13873,1629.0,1628.9,0.2]
[1744726009248,1.6697,1629.4,1629.2,0.2]
[1744726009544,6.19904581,1629.3,1629.2,0.2]
[1744726010146,6.18738,1629.4,1629.3,0.2]
[1744726010361,7.675618,1629.4,1629.3,0.2]
[1744726010564,0.05,1629.4,1629.3,0.2]
[1744726010917,0.05,1629.4,1629.3,7.9769]
[1744726011227,0.05,1629.4,1629.3,8.16518238]
[1744726012360,0.05,1629.4,1629.3,2.02758238]
[1744726012744,0.05,1629.4,1629.3,8.16518238]
[1744726012950,0.05,1629.4,1629.3,9.65684272]
[1744726013131,0.05,1629.4,1629.3,9.59547862]
[1744726013323,0.05,1629.4,1629.3,8.16518238]
[1744726013723,0.05,1629.4,1629.3,2.02758238]
[1744726014763,0.05,1629.4,1629.3,8.16518238]
[1744726014918,0.05,1629.4,1629.3,8.22653733]
[1744726015122,0.05,1629.4,1629.3,8.16518238]
[1744726015322,0.05,1629.4,1629.3,9.59547662]
[1744726015569,6.1836,1630.4,1630.1,0.2]
[1744726015721,6.13392,1630.3,1630.2,0.2]
[1744726015919,6.13421,1630.2,1630.1,0.2]
[1744726017722,6.13459,1630.1,1629.9,0.2]
[1744726017917,6.13496,1630.0,1629.9,0.2]
[1744726018366,6.13572,1629.8,1629.7,0.2]
[1744726018522,6.13609,1629.7,1629.6,0.2]
[1744726018723,6.13647,1629.6,1629.5,0.2]
[1744726018928,6.13685,1629.5,1629.4,0.2]
[1744726019372,6.19829581,1629.5,1629.4,0.2]
[1744726019666,7.43177239,1629.5,1629.2,0.2]
[1744726019832,6.1376,1629.3,1629.2,0.2]
[1744726020167,6.1376,1629.3,1629.0,0.2]
[1744726020168,6.13798,1629.2,1629.0,0.2]
[1744726020371,6.13798,1629.2,1628.7,0.2]
[1744726020372,6.13948,1628.8,1628.7,0.2]
[1744726020521,0.06144581,1628.8,1628.5,0.2]
[1744726020726,0.06144581,1628.8,1628.6,0.2]
[1744726020727,6.14006,1628.7,1628.6,0.2]
[1744726020922,6.14024,1628.6,1628.4,0.2]
[1744726021138,6.20206581,1628.5,1628.4,0.2]
[1744726021738,6.20206581,1628.5,1627.8,1.6209]
[1744726021739,6.13948,1628.8,1628.6,0.2]
[1744726022070,6.14024,1628.6,1628.5,0.2]
[1744726022365,6.14002,1628.7,1628.6,0.2]
[1744726022756,6.13986,1628.7,1628.6,0.2]
[1744726022961,6.14024,1628.6,1628.5,0.2]
[1744726023279,6.14155,1628.3,1627.9,6.1426]
[1744726023494,6.14155,1628.3,1628.0,0.06141797]
[1744726023790,6.20285581,1628.3,1627.8,6.14308]
[1744726023979,6.20234581,1628.5,1627.9,0.06142036]
[1744726024157,0.06144581,1628.5,1627.6,7.6845]
[1744726024466,0.06144581,1628.5,1627.7,0.82987304]
[1744726024668,54.02378,1628.8,1627.9,1.5406]
[1744726024669,60.07365,1628.8,1627.9,1.5406]
[1744726024869,0.06144581,1628.7,1628.2,6.14173]
[1744726025096,0.06144581,1628.7,1627.9,1.5406]
[1744726025374,6.14149,1628.3,1627.9,6.20394137]
[1744726025668,6.14113,1628.4,1628.1,6.14179]
[1744726025838,6.14113,1628.4,1628.0,6.76286414]
[1744726025839,6.14113,1628.4,1628.2,0.1665799]
[1744726026170,6.14113,1628.4,1627.7,0.76845]
[1744726026171,6.14214,1628.1,1627.7,13.05561]
[1744726026367,7.72422,1628.4,1628.0,6.14237]
[1744726026533,6.20287581,1628.3,1628.0,6.14237]
[1744726026739,12.19028,1628.6,1628.2,6.1414]
[1744726026971,12.25169581,1628.6,1628.1,0.06142197]
[1744726027183,1.5466,1628.7,1628.3,6.14115]
[1744726027468,1.5466,1629.0,1628.7,6.13981]
[1744726027668,6.13855,1629.1,1628.7,6.13974]
[1744726027860,6.1386,1629.1,1628.8,6.13939]
[1744726028067,12.33767581,1629.2,1628.8,6.13939]
[1744726028239,6.13857,1629.1,1628.7,6.13984]
[1744726028440,6.13857,1629.1,1628.7,6.20106991]
[1744726028655,16.37371,1629.3,1628.9,6.13904]
[1744726028855,0.06144581,1629.2,1628.7,7.54046399]
[1744726029052,6.13803,1629.2,1628.7,7.54027399]
[1744726029336,8.688,1629.3,1629.1,6.13818]
[1744726029534,6.1385,1629.1,1628.7,13.67992399]
[1744726029778,0.06144581,1629.3,1628.8,1.42937749]
[1744726029989,6.13822,1629.2,1628.8,6.13936]
[1744726030503,6.13822,1629.2,1628.8,6.2006726]
[1744726030651,6.13764,1629.3,1628.6,7.80513]
[1744726030851,12.18739,1629.4,1628.9,6.13911]
[1744726031046,6.11144581,1629.4,1628.8,6.13943]
[1744726031282,6.11144581,1629.4,1628.9,0.06137732]
[1744726031455,12.24886581,1629.4,1629.0,6.13859]
[1744726031650,12.24886581,1629.4,1629.1,6.13832]
[1744726031999,6.13895,1629.0,1628.6,7.80512]
[1744726032403,6.05,1629.1,1628.9,6.13884]
[1744726032560,6.05,1629.1,1629.0,6.13873]
[1744726032900,6.19917581,1629.3,1629.0,6.13873]
[1744726033108,12.33702581,1629.3,1628.9,12.2778]
[1744726033307,12.27558,1629.3,1628.9,12.2778]
[1744726033598,6.05,1629.4,1629.2,6.13782]
[1744726033895,7.65728,1629.6,1629.3,6.13741]
[1744726034095,15.9982,1629.9,1629.3,0.06137051]
[1744726034253,6.05,1630.0,1629.3,0.06137051]
[1744726034453,6.13517,1630.0,1629.6,6.13627]
[1744726034684,0.06144581,1630.1,1629.7,6.29012835]
[1744726034685,6.19610581,1630.1,1629.7,6.29012835]
[1744726034886,6.19610581,1630.1,1629.7,6.29011835]
[1744726034887,6.13501,1630.0,1629.7,6.29011835]
[1744726035059,6.13501,1630.0,1629.7,0.15415835]
[1744726035255,0.05,1630.4,1629.9,6.13502]
[1744726035459,6.13461,1630.1,1630.0,0.15110748]
[1744726035796,6.1352,1630.0,1629.6,6.13633]
[1744726035954,0.05,1630.4,1630.0,0.15082298]
[1744726036275,0.05,1630.4,1630.1,0.15073931]
[1744726036276,6.19541581,1630.3,1630.1,0.15073931]
[1744726036478,6.19541581,1630.3,1629.6,6.13647]
[1744726036479,6.13489,1630.1,1629.6,6.13647]
[1744726036703,1.5073,1630.2,1629.7,0.21287377]
[1744726036996,0.06144581,1630.3,1629.7,0.21287377]
[1744726037161,0.05,1630.4,1629.8,6.13572]
[1744726037366,0.05,1630.4,1630.1,12.26886]
[1744726037562,0.05,1630.4,1630.0,7.70646]
[1744726037749,6.1838,1630.4,1630.2,0.14638826]
[1744726037953,0.05,1630.4,1630.1,6.34200698]
[1744726038203,6.24490581,1630.4,1630.3,0.14495885]
[1744726038487,8.32301839,1630.4,1630.3,0.14492172]
[1744726038693,6.13497,1630.0,1629.6,7.77203]
[1744726038867,6.13576,1629.8,1629.5,6.13679]
[1744726039073,6.13576,1629.8,1629.6,0.14772723]
[1744726039273,6.13746,1629.4,1629.0,7.78838]
[1744726039613,6.13798,1629.2,1629.1,0.14955889]
[1744726039760,6.19942581,1629.2,1629.1,0.14955889]
[1744726040072,6.19942581,1629.2,1628.7,7.78951]
[1744726040073,6.13859,1629.1,1628.7,6.13973]
[1744726040274,7.77456581,1629.3,1628.8,0.21129326]
[1744726040478,7.77456581,1629.3,1628.6,6.13994]
[1744726040479,6.13609,1629.7,1629.0,6.13857]
[1744726040674,6.13619,1629.7,1629.1,0.21472901]
[1744726040860,12.27256,1629.7,1629.3,6.1374]
[1744726041062,6.13619,1629.7,1629.4,6.29012095]
[1744726041249,6.13685,1629.5,1629.4,0.15299095]
[1744726041457,6.13743,1629.4,1629.0,6.20005556]
[1744726041656,6.13797,1629.3,1629.1,0.15301903]
[1744726041852,8.46444581,1629.6,1629.1,0.15301903]
[1744726041853,8.403,1629.6,1629.1,0.15301903]
[1744726042056,14.53967,1629.6,1629.2,6.13795]
[1744726042297,6.19837581,1629.5,1629.3,0.15214505]
[1744726042586,12.33557581,1629.5,1629.3,0.15214505]
[1744726042777,8.403,1629.6,1629.0,6.13868]
[1744726042959,8.403,1629.6,1629.4,0.1523958]
[1744726043156,6.13702,1629.5,1629.1,6.751978]
[1744726043362,14.53971,1629.6,1629.5,0.15264674]
[1744726043663,14.53971,1629.6,1629.5,0.15279549]
[1744726043870,6.13747,1629.4,1629.0,6.1386]
[1744726044089,6.13773,1629.3,1629.1,0.15327943]
[1744726044393,6.13698,1629.5,1629.1,6.13814]
[1744726044689,12.27566,1629.3,1629.2,0.15297243]
[1744726044893,6.13724,1629.4,1628.6,7.80322]
[1744726045066,6.19716581,1629.8,1629.1,6.13805]
[1744726045273,6.13759,1629.4,1629.2,0.15312129]
[1744726045470,0.06144581,1629.3,1629.0,6.13845]
[1744726045669,6.13735,1629.4,1629.1,6.29045836]
[1744726045889,6.13735,1629.4,1629.1,0.15232836]
[1744726046071,6.1361,1629.7,1629.1,0.15232836]
[1744726046072,6.13798,1629.2,1629.1,0.15232836]
[1744726046274,7.73501581,1629.3,1629.0,6.13856]
[1744726046598,13.87285581,1629.3,1629.1,0.15324203]
[1744726046797,7.67357,1629.3,1629.1,0.15324203]
[1744726046977,7.67357,1629.3,1629.0,12.27723]
[1744726046978,7.73501581,1629.3,1629.0,12.27723]
[1744726047177,7.73484581,1629.3,1629.2,0.15308381]
[1744726047391,7.73491581,1629.3,1628.9,6.1388]
[1744726047595,0.06144581,1629.3,1629.2,0.15320673]
[1744726047807,1.6122,1629.6,1629.2,0.62915267]
[1744726048016,7.74758,1629.9,1629.5,6.13657]
[1744726048212,6.13575,1629.8,1629.4,12.2742]
[1744726048368,6.19753581,1629.7,1629.6,0.15346022]
[1744726048703,6.19771581,1629.7,1629.4,6.13718]
[1744726048909,0.06144581,1629.7,1629.3,6.13739]
[1744726049080,6.05,1629.8,1629.6,6.13621]
[1744726049263,6.05,1629.8,1629.7,0.15215574]
[1744726049464,6.05,1629.8,1629.5,12.27353]
[1744726049681,6.05,1629.8,1629.6,6.28763172]
[1744726050114,12.18588,1629.8,1629.6,0.15129172]
[1744726050296,6.13609,1629.7,1629.6,0.15129172]
[1744726050502,6.1367,1629.6,1629.2,13.91634]
[1744726050663,6.13706,1629.5,1629.2,7.77852]
[1744726051014,6.13726,1629.4,1629.0,6.13856]
[1744726051358,12.27479,1629.4,1629.0,12.27714]
[1744726051632,6.05,1629.6,1629.0,1.44259379]
[1744726051909,1.5245,1630.0,1629.4,1.6054]
[1744726052115,6.19678581,1629.9,1629.4,7.7425]
[1744726052261,6.19678581,1629.9,1629.4,1.6054]
[1744726052262,0.06144581,1629.9,1629.4,1.6054]
[1744726052463,6.13537,1629.9,1629.5,6.13651]
[1744726052703,1.58594581,1630.0,1629.4,7.74256]
[1744726052704,6.19752581,1629.8,1629.4,7.74251]
[1744726053005,0.06144581,1629.9,1629.4,2.993405]
[1744726053163,0.06144581,1629.9,1629.6,6.13623]
[1744726053359,6.05,1630.2,1629.7,0.0613586]
[1744726053663,18.38006581,1630.2,1629.9,6.13522]
[1744726053972,6.13558,1629.9,1629.5,6.13669]
[1744726054309,6.13594,1629.8,1629.5,6.13669]
[1744726054506,6.19745581,1629.8,1629.4,1.6054]
[1744726054803,6.13538,1629.9,1629.5,6.19793219]
[1744726055006,6.19682581,1629.9,1629.5,6.13657]
[1744726055192,6.13538,1629.9,1629.6,6.13637]
[1744726055508,6.13538,1629.9,1629.6,6.13647]
[1744726055913,6.13538,1629.9,1629.7,0.14933032]
[1744726056263,6.13538,1629.9,1629.5,6.911027]
[1744726056459,0.06144581,1629.8,1629.6,0.14952564]
[1744726056693,6.13587,1629.8,1629.4,7.7426]
[1744726056893,12.27169,1629.8,1629.5,0.14972099]
[1744726057077,12.33313581,1629.8,1629.5,0.14972099]
[1744726057376,6.05,1629.9,1629.7,6.13581]
[1744726057584,6.05,1629.9,1629.7,7.363038]
[1744726057784,6.05,1629.9,1629.8,0.14628286]
[1744726057986,70.10871,1630.3,1629.8,0.14628286]
[1744726058296,63.9746,1630.3,1629.9,6.13534]
[1744726058463,53.921,1630.3,1630.2,6.13421]
[1744726058670,47.871,1630.3,1630.2,6.27957615]
[1744726058865,0.05,1630.4,1630.3,6.13384]
[1744726059085,0.05,1630.4,1630.3,6.27894308]
[1744726059290,0.05,1630.4,1630.3,0.14510308]
[1744726059597,0.05,1630.4,1630.3,6.27894308]
[1744726059797,0.05,1630.4,1630.3,6.34028045]
[1744726059985,0.05,1630.4,1630.3,7.5877115]
[1744726060592,0.05,1630.4,1630.3,9.10737413]
[1744726061306,10.12446735,1631.2,1630.3,10.19957605]
[1744726061307,5.50528735,1631.2,1630.3,10.19957605]
[1744726061598,3.99398735,1631.2,1631.1,6.13083]
[1744726061804,8.182,1631.4,1631.1,12.26166]
[1744726062095,8.182,1631.4,1631.1,0.13627676]
[1744726062294,14.31203,1631.4,1631.1,0.13627676]
[1744726062501,6.13045,1631.2,1631.1,0.13627676]
[1744726062701,6.13045,1631.2,1630.9,6.13153]
[1744726062867,0.06144581,1631.3,1631.1,0.13620255]
[1744726063073,14.31177,1631.4,1631.1,6.32833151]
[1744726063283,8.182,1631.4,1631.1,0.13620255]
[1744726063472,6.13037,1631.3,1630.9,6.13148]
[1744726063674,6.19156581,1631.3,1631.0,0.13610059]
[1744726063869,8.182,1631.4,1631.1,6.13067]
[1744726064085,8.182,1631.4,1630.8,7.7005]
[1744726064086,6.13025,1631.3,1631.2,0.13571092]
[1744726064404,20.44177,1631.4,1631.0,6.13096]
[1744726064611,14.31174,1631.4,1631.2,0.13561817]
[1744726064781,0.05,1631.4,1631.1,0.13581299]
[1744726064975,6.13027,1631.3,1630.9,6.13158]
[1744726065177,0.11144581,1631.4,1631.3,6.13008]
[1744726065383,0.05,1631.4,1631.3,6.13008]
[1744726065611,0.05,1631.4,1631.3,9.07078935]
[1744726066108,0.05,1631.4,1631.3,9.13207243]
[1744726066480,0.05,1631.4,1631.3,9.07078935]
[1744726067810,0.05,1631.4,1631.3,9.13206947]
[1744726068011,0.05,1631.4,1631.3,9.07078935]
[1744726068170,0.05,1631.4,1631.3,9.13207118]
[1744726068511,0.05,1631.4,1631.3,9.07078935]
[1744726068873,0.05,1631.4,1631.3,9.132067]
[1744726069296,0.05,1631.4,1631.3,9.07078935]
[1744726069624,0.05,1631.4,1631.3,8.949116]
[1744726069833,0.05,1631.4,1631.3,7.72308]
[1744726070622,0.05,1631.4,1631.3,7.78436275]
[1744726070817,0.05,1631.4,1631.3,7.72308]
[1744726072891,0.05,1631.4,1631.3,7.78436288]
[1744726073218,1e-05,1631.4,1631.3,7.72308]
[1744726073418,1e-05,1631.4,1631.3,9.77985274]
[1744726073788,1e-05,1631.4,1631.3,9.84113568]
[1744726073978,1e-05,1631.4,1631.3,9.77985274]
[1744726074579,1e-05,1631.4,1631.3,9.84113325]
[1744726075130,1e-05,1631.4,1631.3,9.77985274]
[1744726076284,1e-05,1631.4,1631.3,9.84114001]
[1744726076832,1e-05,1631.4,1631.3,9.77985274]
[1744726077486,0.3924884,1632.2,1632.1,7.14197]
[1744726077684,8.4e-06,1632.2,1632.1,7.14197]
[1744726078226,8.4e-06,1632.2,1632.1,7.59444287]
[1744726078737,8.4e-06,1632.2,1632.1,7.65569614]
[1744726078913,8.4e-06,1632.2,1632.1,7.14197]
[1744726079079,8.4e-06,1632.2,1632.1,8.468894]
[1744726079898,8.4e-06,1632.2,1632.1,6.12707]
[1744726080330,8.4e-06,1632.2,1632.1,6.18832221]
[1744726080483,8.4e-06,1632.2,1632.1,6.12707]
[1744726080927,8.4e-06,1632.2,1632.0,12.25459]
[1744726081227,8.4e-06,1632.2,1632.0,6.12727]
[1744726081643,8.4e-06,1632.2,1631.8,1.5952]
[1744726081644,6.1268184,1632.2,1631.8,1.5952]
[1744726081941,8.4e-06,1632.2,1631.5,1.5952]
[1744726082120,8.4e-06,1632.2,1631.7,6.12852]
[1744726082121,6.12767,1632.0,1631.7,6.12852]
[1744726082313,6.12848,1631.8,1631.4,6.12947]
[1744726082518,12.25696,1631.8,1631.4,12.25906]
[1744726082698,6.12916,1631.6,1631.2,6.13028]
[1744726082898,6.12963,1631.5,1631.1,6.1306]
[1744726083104,6.13037,1631.3,1630.9,6.13145]
[1744726083526,6.13103,1631.1,1630.8,6.1319]
[1744726083839,6.13103,1631.1,1630.7,6.13205]
[1744726084045,6.19166581,1631.3,1630.9,6.13138]
[1744726084182,1.5062,1631.4,1631.1,6.13055]
[1744726084388,6.12986,1631.4,1631.1,6.13066]
[1744726084796,6.12986,1631.4,1631.1,6.13075]
[1744726084991,6.12986,1631.4,1631.0,12.26216]
[1744726085289,1.6256,1631.2,1630.6,1.6363]
[1744726085487,6.13136,1631.0,1630.6,6.13256]
[1744726085814,6.13095,1631.1,1630.8,6.13167]
[1744726086009,6.13095,1631.1,1630.6,6.13255]
[1744726086221,6.13133,1631.0,1630.6,6.745805]
[1744726086385,12.26193,1631.1,1630.7,6.13216]
[1744726086788,12.17754,1632.0,1630.6,6.745935]
[1744726086789,12.64358144,1632.0,1630.6,0.613255]
[1744726087044,1.5147084,1632.2,1631.5,6.12932]
[1744726087187,1.5147084,1632.2,1632.0,6.12723]
[1744726087384,0.06144581,1632.1,1632.0,6.12723]
[1744726087629,1.5147084,1632.2,1631.9,6.12778]
[1744726087783,1.57615421,1632.2,1631.7,0.06127122]
[1744726087982,1.5147084,1632.2,1631.7,6.12857]
[1744726088198,1.5147084,1632.2,1631.8,0.612857]
[1744726088407,8.4e-06,1632.2,1632.1,6.12707]
[1744726088614,8.4e-06,1632.2,1632.0,6.12729]
[1744726088830,8.4e-06,1632.2,1632.1,6.18833434]
[1744726089143,8.4e-06,1632.2,1632.1,7.70053434]
[1744726089429,8.4e-06,1632.2,1632.1,7.63927]
[1744726089638,0.06144581,1633.2,1632.5,6.1253]
[1744726089791,8.14744581,1633.3,1632.6,6.12501]
[1744726090132,6.12332,1633.1,1632.6,12.24997]
[1744726090369,0.06144581,1633.1,1632.8,6.12438]
[1744726090645,0.06144581,1633.1,1632.7,6.18599279]
[1744726090646,6.12333,1633.1,1632.7,6.18599279]
[1744726090847,12.24688,1633.1,1632.7,0.06124279]
[1744726091056,6.12333,1633.1,1632.6,6.12484]
[1744726091213,0.06144581,1633.2,1632.6,6.12484]
[1744726091214,6.18461581,1633.2,1632.7,0.61860828]
[1744726091412,6.12403,1633.0,1632.4,6.12592]
[1744726091610,0.06144581,1632.9,1632.7,6.12478]
[1744726091946,6.18493581,1633.1,1632.7,6.12478]
[1744726092150,6.18451581,1633.2,1632.8,6.12428]
[1744726092357,7.69373,1633.4,1632.9,6.18511868]
[1744726092506,12.30703581,1633.3,1632.9,6.12401]
[1744726092706,6.18415581,1633.3,1632.9,6.12401]
[1744726093106,6.12345,1633.1,1632.8,0.6185521]
[1744726093352,1.5019,1632.9,1632.4,6.12593]
[1744726093552,6.12532,1632.6,1632.2,6.12633]
[1744726093704,6.12487,1632.7,1632.2,1.42426135]
[1744726093912,0.06144581,1632.8,1632.5,6.12553]
[1744726094124,6.12484,1632.7,1632.4,6.12585]
[1744726094358,12.31094581,1632.8,1632.4,6.12585]
[1744726094531,6.12488,1632.7,1632.3,12.25246]
[1744726094744,0.06144581,1632.8,1632.5,6.12529]
[1744726095053,6.12445,1632.8,1632.5,6.12529]
[1744726095235,7.626,1632.9,1632.5,12.25073]
[1744726095422,7.68744581,1632.9,1632.5,12.25073]
[1744726095806,1.5019,1632.9,1632.6,6.12505]
[1744726096027,7.68747581,1632.9,1632.4,6.12579]
[1744726096310,1.56334581,1632.9,1632.6,6.12515]
[1744726096510,1.56334581,1632.9,1632.7,6.12466]
[1744726096743,1.5019,1632.9,1632.7,6.12466]
[1744726096949,6.12445,1632.8,1632.5,6.12553]
[1744726097120,1.6062,1632.4,1631.7,1.5712]
[1744726097319,6.12813,1631.9,1631.6,0.612932]
[1744726097521,7.77611581,1631.9,1631.5,6.12918]
[1744726097715,0.06144581,1631.8,1631.5,6.1292]
[1744726097928,7.71464,1631.9,1631.5,6.12914]
[1744726098133,7.77608581,1631.9,1631.5,12.25833]
[1744726098334,0.06144581,1631.9,1631.2,6.13045]
[1744726098530,6.12747,1632.0,1631.4,6.1297]
[1744726098770,6.18928581,1631.9,1631.5,6.12906]
[1744726099085,6.12934,1631.5,1631.1,10.88088415]
[1744726099268,0.06144581,1631.6,1631.1,4.75010415]
[1744726099472,12.31885581,1631.7,1631.2,6.13015]
[1744726099634,6.12896,1631.6,1631.2,6.13015]
[1744726100035,6.13045,1631.2,1631.1,4.75010415]
[1744726100244,7.75913581,1631.2,1630.5,6.13297]
[1744726100443,1.62864581,1631.2,1630.9,6.13133]
[1744726100645,1.5672,1631.5,1631.3,6.12989]
[1744726101049,1.5672,1631.5,1631.1,6.13065]
[1744726101050,7.69655,1631.5,1631.1,6.13065]
[1744726101273,7.69655,1631.5,1631.2,6.13045]
[1744726101474,7.69655,1631.5,1631.1,6.743705]
[1744726101641,1.5672,1631.5,1631.2,6.13029]
[1744726101836,1.5672,1631.5,1631.0,6.13094]
[1744726102168,6.13064,1631.2,1630.9,6.13154]
[1744726102333,0.06144581,1631.4,1631.2,6.13031]
[1744726102542,1.5672,1631.5,1631.0,6.1309]
[1744726102543,1.62864581,1631.5,1631.0,6.1309]
[1744726102761,1.62864581,1631.5,1631.3,6.12998]
[1744726103070,6.12897,1631.6,1631.3,6.12998]
[1744726103268,55.862,1631.7,1631.2,6.13041]
[1744726103472,6.12945,1631.5,1631.1,12.26162]
[1744726103772,6.12933,1631.5,1631.1,6.19211326]
[1744726103978,6.19115581,1631.4,1631.0,6.13114]
[1744726104334,6.19115581,1631.4,1630.9,6.13153]
[1744726104335,6.13029,1631.3,1630.9,12.26293]
[1744726104533,6.13029,1631.3,1630.9,6.1314]
[1744726104771,6.13029,1631.3,1630.9,12.26281]
[1744726104935,6.19121581,1631.4,1631.0,6.13111]
[1744726105135,6.12976,1631.4,1631.1,6.13059]
[1744726105359,12.25971,1631.4,1631.0,6.13113]
[1744726105670,6.12985,1631.4,1631.0,12.32358139]
[1744726105874,6.12985,1631.4,1631.0,12.26228]
[1744726106176,12.25975,1631.4,1631.0,12.26228]
[1744726106472,6.12985,1631.4,1631.0,12.26228]
[1744726106678,6.19084581,1631.5,1631.1,6.19201143]
[1744726106876,6.12993,1631.4,1631.0,6.13116]
[1744726107069,0.06144581,1631.5,1631.1,0.06130146]
[1744726107266,0.06144581,1631.5,1631.0,6.1312]
[1744726107267,6.12997,1631.4,1631.0,6.13117]
[1744726107444,6.12997,1631.4,1631.0,7.357291]
[1744726107645,6.19077581,1631.5,1631.1,6.1307]
[1744726108186,6.19077581,1631.5,1631.1,12.26136]
[1744726108335,12.32031581,1631.5,1631.1,6.1919615]
[1744726108535,12.32042581,1631.5,1631.1,12.26135]
[1744726108739,0.06144581,1631.5,1630.8,6.13195]
[1744726108940,0.06144581,1631.5,1630.1,0.05]
[1744726108941,6.13008,1631.3,1630.5,6.133]
[1744726109171,1.6288,1631.0,1630.8,6.13181]
[1744726109351,1.6288,1631.3,1631.1,6.13066]
[1744726109957,1.6288,1631.3,1631.0,12.26228]
[1744726110343,1.6288,1631.3,1631.0,6.13114]
[1744726110745,0.06144581,1631.5,1631.0,0.613114]
[1744726110945,6.19085581,1631.5,1631.1,6.13055]
[1744726111175,0.06144581,1631.5,1630.9,6.13137]
[1744726111481,15.643,1631.6,1631.0,0.06130305]
[1744726111680,6.12936,1631.5,1631.2,6.13042]
[1744726111979,21.772,1631.6,1631.2,6.13028]
[1744726112182,15.722,1631.6,1631.3,6.12991]
[1744726112384,15.72198,1631.6,1631.2,6.74957809]
[1744726112544,6.12942,1631.5,1631.2,6.74947809]
[1744726112749,9.593,1631.6,1631.3,6.12972]
[1744726112971,9.65444581,1631.6,1631.3,6.12981]
[1744726113172,8.087,1631.6,1631.4,6.12946]
[1744726113655,14.216,1631.6,1631.2,6.1303]
[1744726113980,8.087,1631.6,1631.4,6.12938]
[1744726114165,8.087,1631.6,1631.4,12.25882]
[1744726114366,47.778,1631.7,1631.5,6.12932]
[1744726114549,47.778,1631.7,1631.5,12.25864]
[1744726114949,47.778,1631.7,1631.5,6.12932]
[1744726115185,47.778,1631.7,1631.5,6.12916]
[1744726115366,1.5253,1631.8,1631.5,6.742076]
[1744726115566,8.087,1631.9,1631.7,6.12831]
[1744726115785,8.087,1631.9,1631.8,6.1282]
[1744726116194,0.06144581,1632.2,1632.0,6.12745]
[1744726116345,14.21035,1632.3,1632.0,6.12745]
[1744726116548,6.12635,1632.3,1632.0,6.12745]
[1744726116862,55.888,1632.4,1632.2,6.12634]
[1744726117076,55.888,1632.4,1632.2,12.25292]
[1744726117283,47.804,1632.4,1632.2,6.12634]
[1744726117462,14.20933,1632.6,1632.3,6.12632]
[1744726117658,8.084,1632.6,1632.3,6.12632]
[1744726117874,8.084,1632.6,1632.4,12.25178]
[1744726118073,8.084,1632.6,1632.5,6.12557]
[1744726118592,8.084,1632.6,1632.4,6.12589]
[1744726118593,0.06144581,1632.9,1632.4,6.18718165]
[1744726118752,15.80633,1633.0,1632.6,6.12483]
[1744726118952,9.6826,1633.0,1632.9,6.12407]
[1744726119266,59.51772735,1633.2,1632.8,6.12428]
[1744726119653,53.39458735,1633.2,1632.8,6.1856467]
[1744726119855,6.12358,1633.1,1632.7,7.66476]
[1744726120083,53.39458735,1633.2,1633.0,6.12354]
[1744726120287,5.59258735,1633.2,1632.9,6.12379]
[1744726120490,0.06144581,1633.1,1632.7,1.378989]
[1744726120675,6.12466,1632.8,1632.4,6.1259]
[1744726120871,6.12466,1632.8,1632.3,6.74500767]
[1744726120872,12.31165581,1632.7,1632.3,6.74500767]
[1744726121071,6.12532,1632.6,1632.2,6.12663]
[1744726121390,6.12532,1632.6,1632.2,6.12653]
[1744726121692,6.12579,1632.5,1632.1,7.71102]
[1744726121891,6.18755581,1632.4,1632.0,6.18861725]
[1744726122095,6.12822,1631.8,1631.4,6.12969]
[1744726122299,6.18966581,1631.8,1631.4,6.742489]
[1744726122602,0.06144581,1632.0,1631.4,6.742629]
[1744726122805,6.12876,1631.7,1631.4,6.742609]
[1744726123100,0.06144581,1631.7,1631.4,6.12948]
[1744726123266,0.06144581,1631.7,1631.3,6.12991]
[1744726123595,1.5856,1632.9,1631.7,1.5945]
[1744726123779,1.5856,1632.3,1631.9,6.1276]
[1744726123985,8.081,1633.0,1631.9,6.1276]
[1744726123986,1.573,1632.6,1632.1,6.12707]
[1744726124289,1.573,1632.6,1632.4,6.12576]
[1744726124649,1.573,1632.6,1632.3,6.12618]
[1744726125691,6.12607,1632.4,1631.9,0.61276]
[1744726125860,6.12607,1632.4,1631.7,6.12855]
[1744726125861,7.65687,1632.1,1631.7,6.12855]
[1744726126193,7.65687,1632.1,1631.2,17.59481368]
[1744726126194,6.12822,1631.8,1631.2,4.75011625]
[1744726126349,6.12785,1631.9,1631.2,4.75011625]
[1744726126689,8.08,1632.0,1631.7,6.12837]
[1744726126887,1.5298,1632.1,1631.7,0.612837]
[1744726127088,1.5298,1632.1,1631.7,6.12829]
[1744726127257,1.5298,1632.1,1632.0,6.12745]
[1744726127455,1.5298,1632.1,1631.7,0.06127282]
[1744726127685,9.583,1632.3,1632.0,6.12721]
[1744726127904,9.583,1632.3,1632.1,6.12688]
[1744726128100,9.583,1632.3,1632.0,6.12744]
[1744726128402,8.08,1632.3,1632.2,6.1267]
[1744726128561,1.5785,1632.5,1632.2,6.1267]
[1744726128761,6.12572,1632.5,1632.1,12.25389]
[1744726128956,14.20597,1632.7,1632.3,6.12632]
[1744726129155,8.081,1632.7,1632.5,6.12557]
[1744726129404,8.081,1632.7,1632.5,12.25097]
[1744726129699,8.081,1632.7,1632.5,12.25083]